bitfinex/quotes_SOLUSD_20230102
["timestamp","ask_amount","ask_price","bid_price","bid_amount"]
[1672649538928,59.60547516,11.215,11.205,24.7385]
[1672649539456,29.60547516,11.215,11.205,54.7385]
[1672649539645,29.60547516,11.215,11.205,24.7385]
[1672649539858,29.60547516,11.215,11.206,30.0]
[1672649540492,29.60547516,11.215,11.205,54.7385]
[1672649540808,30.0,11.214,11.202,67.06]
[1672649541004,30.0,11.214,11.19,45.38]
[1672649541005,96.99,11.214,11.2,67.07]
[1672649541222,156.2012,11.213,11.2,30.0]
[1672649541420,30.0,11.211,11.2,30.0]
[1672649542067,223.2012,11.212,11.2,30.0]
[1672649542291,30.0,11.21,11.199,97.08]
[1672649542594,30.0,11.21,11.199,67.08]
[1672649542785,97.01,11.21,11.199,67.08]
[1672649543000,106.08,11.21,11.198,91.8185]
[1672649543208,263.5532,11.21,11.198,24.7385]
[1672649543651,322.73129297,11.21,11.198,24.7385]
[1672649543848,330.69437773,11.21,11.198,24.7385]
[1672649544473,322.73129297,11.21,11.198,24.7385]
[1672649544676,263.5532,11.21,11.198,24.7385]
[1672649544889,233.5532,11.21,11.198,24.7385]
[1672649545102,233.5532,11.21,11.198,54.7385]
[1672649545440,30.0,11.209,11.198,24.7385]
[1672649545628,67.02,11.208,11.198,24.7385]
[1672649545834,30.0,11.207,11.198,24.7385]
[1672649546050,67.02,11.208,11.198,24.7385]
[1672649546273,67.02,11.208,11.198,54.7385]
[1672649546487,67.02,11.208,11.198,24.7385]
[1672649547007,67.02,11.208,11.198,54.7385]
[1672649547960,67.02,11.208,11.199,30.0]
[1672649548690,67.02,11.208,11.198,24.7385]
[1672649549210,67.02,11.208,11.198,54.7385]
[1672649549956,67.02,11.208,11.198,24.7385]
[1672649551113,67.02,11.208,11.198,54.7385]
[1672649551425,67.02,11.208,11.199,30.0]
[1672649551638,226.1275,11.209,11.199,30.0]
[1672649551845,159.1075,11.209,11.199,30.0]
[1672649552772,159.1075,11.209,11.199,97.08]
[1672649553299,159.1075,11.209,11.199,67.08]
[1672649553718,30.0,11.208,11.199,67.08]
[1672649554150,178.99303988,11.208,11.198,24.7385]
[1672649554679,148.99303988,11.208,11.198,24.7385]
[1672649554897,148.99303988,11.208,11.198,54.7385]
[1672649556138,148.99303988,11.208,11.198,24.7385]
[1672649556349,81.97303988,11.208,11.199,67.08]
[1672649556554,81.97303988,11.208,11.2,30.0]
[1672649556779,159.1075,11.209,11.199,67.08]
[1672649556981,30.0,11.208,11.199,67.08]
[1672649557305,30.0,11.208,11.198,91.8185]
[1672649558800,97.02,11.208,11.198,24.7385]
[1672649559109,111.97303988,11.208,11.198,24.7385]
[1672649560050,178.99303988,11.208,11.198,24.7385]
[1672649560876,148.99303988,11.208,11.198,54.7385]
[1672649561212,148.99303988,11.208,11.198,24.7385]
[1672649561621,148.99303988,11.208,11.198,54.7385]
[1672649562054,148.99303988,11.208,11.198,24.7385]
[1672649562266,30.0,11.207,11.198,24.7385]
[1672649562586,67.04,11.206,11.198,24.7385]
[1672649562796,111.97303988,11.207,11.198,24.7385]
[1672649563101,67.04,11.206,11.198,24.7385]
[1672649563532,149.01303988,11.206,11.198,24.7385]
[1672649564045,81.97303988,11.206,11.198,24.7385]
[1672649565015,81.97303988,11.206,11.199,30.0]
[1672649565208,81.97303988,11.206,11.198,24.7385]
[1672649565529,81.97303988,11.206,11.198,54.7385]
[1672649566250,81.97303988,11.206,11.198,24.7385]
[1672649568124,30.0,11.204,11.198,24.7385]
[1672649568339,67.04,11.205,11.198,24.7385]
[1672649570342,67.04,11.205,11.198,54.7385]
[1672649570554,172.41273988,11.206,11.198,24.7385]
[1672649572542,30.0,11.205,11.198,24.7385]
[1672649572769,172.41273988,11.206,11.198,24.7385]
[1672649572983,30.0,11.204,11.198,24.7385]
[1672649573392,111.97303988,11.204,11.198,24.7385]
[1672649573602,81.97303988,11.204,11.198,24.7385]
[1672649573828,90.4397,11.206,11.198,24.7385]
[1672649574019,23.3997,11.206,11.199,30.0]
[1672649574231,90.4397,11.206,11.199,30.0]
[1672649574448,90.4397,11.206,11.198,54.7385]
[1672649574449,23.3997,11.206,11.198,54.7385]
[1672649574665,23.3997,11.206,11.198,24.7385]
[1672649574875,67.04,11.205,11.198,24.7385]
[1672649575488,67.04,11.205,11.199,30.0]
[1672649575720,67.04,11.205,11.198,24.7385]
[1672649575910,172.41273988,11.206,11.198,54.7385]
[1672649576123,172.41273988,11.206,11.198,24.7385]
[1672649576875,30.0,11.205,11.198,24.7385]
[1672649577280,156.47637321,11.204,11.191,67.13]
[1672649577491,30.0,11.202,11.189,24.9706]
[1672649577701,67.07,11.201,11.191,30.0]
[1672649578245,91.1189,11.202,11.191,30.0]
[1672649578433,24.0589,11.201,11.193,30.0]
[1672649579924,24.0589,11.201,11.192,67.12]
[1672649580135,24.0589,11.201,11.193,30.0]
[1672649580444,23.0415,11.211,11.194,67.11]
[1672649580655,154.8313,11.208,11.195,30.0]
[1672649580858,23.6495,11.207,11.196,67.1]
[1672649581066,23.6495,11.207,11.197,30.0]
[1672649581279,23.6495,11.207,11.198,67.08]
[1672649581492,23.6495,11.207,11.199,30.0]
[1672649581707,23.6495,11.207,11.2,67.07]
[1672649582552,23.6495,11.207,11.2,30.0]
[1672649583296,23.6495,11.207,11.201,67.07]
[1672649584009,131.1818,11.208,11.201,67.07]
[1672649584452,131.1818,11.208,11.2,67.07]
[1672649585071,131.1818,11.208,11.201,30.0]
[1672649585798,131.1818,11.208,11.202,67.06]
[1672649586022,108.2405,11.208,11.201,67.07]
[1672649586756,108.2405,11.208,11.202,30.0]
[1672649586961,108.2405,11.208,11.199,24.6951]
[1672649587374,175.2605,11.208,11.199,24.6951]
[1672649587796,175.2605,11.208,11.199,54.6951]
[1672649588024,108.2405,11.208,11.199,54.6951]
[1672649588231,108.2405,11.208,11.2,30.0]
[1672649589487,108.2405,11.208,11.199,54.6951]
[1672649590114,108.2405,11.208,11.2,30.0]
[1672649590441,108.2405,11.208,11.2,97.07]
[1672649590650,108.2405,11.208,11.2,67.07]
[1672649590857,175.2605,11.208,11.2,30.0]
[1672649591278,108.2405,11.208,11.2,30.0]
[1672649593174,30.0,11.207,11.199,24.6951]
[1672649593378,97.03,11.207,11.199,24.6951]
[1672649593801,67.03,11.207,11.199,24.6951]
[1672649594414,132.964,11.208,11.199,24.6951]
[1672649595048,132.964,11.208,11.199,54.6951]
[1672649595469,132.964,11.208,11.199,24.6951]
[1672649595788,30.0,11.207,11.199,24.6951]
[1672649596198,132.964,11.208,11.199,54.6951]
[1672649596944,132.964,11.208,11.199,24.6951]
[1672649597375,30.0,11.207,11.199,24.6951]
[1672649597683,132.964,11.208,11.199,24.6951]
[1672649597898,132.964,11.208,11.199,54.6951]
[1672649598421,132.964,11.208,11.2,30.0]
[1672649599462,132.964,11.208,11.199,121.7751]
[1672649599682,132.964,11.208,11.199,91.7751]
[1672649599878,132.964,11.208,11.199,24.6951]
[1672649600731,132.964,11.208,11.199,54.6951]
[1672649602098,132.964,11.208,11.199,24.6951]
[1672649602295,132.964,11.208,11.199,54.6951]
[1672649603037,132.964,11.208,11.2,30.0]
[1672649605568,132.964,11.208,11.199,121.7751]
[1672649605889,132.964,11.208,11.199,91.7751]
[1672649606108,132.964,11.208,11.199,24.6951]
[1672649606617,132.964,11.208,11.199,54.6951]
[1672649606833,132.964,11.208,11.199,24.6951]
[1672649607773,30.0,11.206,11.199,24.6951]
[1672649607989,67.04,11.205,11.199,24.6951]
[1672649608183,90.5855,11.207,11.199,24.6951]
[1672649609128,57.96836739,11.206,11.199,24.6951]
[1672649609449,67.04,11.205,11.199,24.6951]
[1672649609666,67.04,11.206,11.199,24.6951]
[1672649610732,30.0,11.205,11.199,24.6951]
[1672649610930,67.04,11.206,11.199,24.6951]
[1672649611686,23.5555,11.207,11.199,24.6951]
[1672649611990,23.5555,11.207,11.2,30.0]
[1672649612601,23.5555,11.207,11.199,24.6951]
[1672649613027,23.5555,11.207,11.2,30.0]
[1672649615028,23.5555,11.207,11.199,24.6951]
[1672649615238,23.5555,11.207,11.2,67.07]
[1672649615778,23.5555,11.207,11.199,54.6951]
[1672649616410,23.5555,11.207,11.2,30.0]
[1672649617359,23.5555,11.207,11.199,24.6951]
[1672649617583,23.5555,11.207,11.199,54.6951]
[1672649618488,23.5555,11.207,11.2,30.0]
[1672649619878,23.5555,11.207,11.199,54.6951]
[1672649620507,23.5555,11.207,11.199,24.6951]
[1672649623247,30.0,11.206,11.199,24.6951]
[1672649623464,23.5555,11.207,11.199,54.6951]
[1672649623674,23.5555,11.207,11.2,30.0]
[1672649623988,23.5555,11.207,11.199,54.6951]
[1672649624808,23.5555,11.207,11.199,24.6951]
[1672649626400,67.04,11.206,11.199,24.6951]
[1672649626834,90.5855,11.207,11.199,24.1951]
[1672649627329,23.5555,11.207,11.199,24.1951]
[1672649627540,23.5555,11.207,11.2,67.07]
[1672649627750,23.5555,11.207,11.201,30.0]
[1672649627975,23.5555,11.207,11.2,67.07]
[1672649628169,23.5555,11.207,11.199,24.1951]
[1672649628377,23.5555,11.207,11.199,54.1951]
[1672649629442,23.5555,11.207,11.199,24.1951]
[1672649630181,23.5555,11.207,11.2,30.0]
[1672649630588,23.5555,11.207,11.2,106.14]
[1672649631218,23.5555,11.207,11.2,121.94730786]
[1672649631633,23.5555,11.207,11.2,106.14]
[1672649633252,66.96,11.219,11.201,15.80730786]
[1672649633581,30.0,11.218,11.202,97.06]
[1672649633893,30.0,11.218,11.204,30.0]
[1672649634076,30.0,11.218,11.206,30.0]
[1672649634283,30.0,11.218,11.207,175.6845]
[1672649634517,30.0,11.218,11.208,30.0]
[1672649634735,30.0,11.218,11.209,67.02]
[1672649634918,29.67004989,11.217,11.209,67.02]
[1672649637963,30.0,11.219,11.209,67.02]
[1672649638199,9.06,11.22,11.21,30.0]
[1672649638386,9.06,11.22,11.21,149.4964]
[1672649638598,9.06,11.22,11.21,119.4964]
[1672649639540,66.96,11.219,11.21,119.4964]
[1672649639773,30.0,11.218,11.21,119.4964]
[1672649640296,76.01,11.22,11.21,119.4964]
[1672649640698,45.7633,11.221,11.211,30.0]
[1672649641031,45.7633,11.221,11.212,67.0]
[1672649641455,30.0,11.22,11.212,67.0]
[1672649641659,30.0,11.22,11.211,67.01]
[1672649642173,45.7633,11.221,11.211,82.81730786]
[1672649642379,45.7633,11.221,11.212,30.0]
[1672649642601,45.7633,11.221,11.213,66.99]
[1672649643229,114.2195,11.222,11.213,66.99]
[1672649643230,66.91,11.228,11.213,66.99]
[1672649643447,30.0,11.228,11.214,30.0]
[1672649643648,30.0,11.228,11.215,66.98]
[1672649643871,30.0,11.228,11.216,24.4473]
[1672649644085,30.0,11.228,11.217,66.97]
[1672649644292,30.0,11.228,11.217,186.3666]
[1672649645443,30.0,11.228,11.217,210.8139]
[1672649648494,118.9188,11.229,11.218,30.0]
[1672649648712,55.6041,11.23,11.22,30.0]
[1672649648929,9.01,11.23,11.221,66.95]
[1672649649334,9.01,11.23,11.22,66.95]
[1672649649543,9.01,11.23,11.219,131.9333]
[1672649649754,30.0,11.228,11.219,131.9333]
[1672649651548,30.0,11.226,11.213,66.99]
[1672649651764,66.92,11.225,11.212,30.0]
[1672649651961,20.0,11.224,11.213,66.99]
[1672649652289,20.0,11.224,11.214,30.0]
[1672649652713,20.03801014,11.229,11.215,66.98]
[1672649652917,68.66731014,11.229,11.216,30.0]
[1672649653126,68.66731014,11.229,11.217,206.8126]
[1672649653328,30.0,11.228,11.217,206.8126]
[1672649653544,96.91,11.228,11.217,206.8126]
[1672649653758,30.0,11.228,11.217,139.8426]
[1672649653966,50.01653313,11.228,11.217,139.8426]
[1672649654177,50.01653313,11.228,11.218,66.96]
[1672649654918,50.01653313,11.228,11.218,180.4729]
[1672649655547,50.01653313,11.228,11.218,113.5129]
[1672649655762,66.91,11.227,11.218,113.5129]
[1672649656373,30.0,11.226,11.218,113.5129]
[1672649656795,86.92,11.225,11.212,67.0]
[1672649657019,30.0,11.224,11.21,30.0]
[1672649657223,86.93,11.223,11.211,67.01]
[1672649657430,9.07,11.22,11.21,67.01]
[1672649657957,9.07,11.22,11.211,30.0]
[1672649658171,9.07,11.22,11.212,67.0]
[1672649658380,30.0,11.221,11.212,67.0]
[1672649658705,46.1188,11.222,11.212,67.0]
[1672649658917,46.1188,11.222,11.213,30.0]
[1672649659231,30.0,11.221,11.212,67.0]
[1672649659839,76.1188,11.222,11.212,67.0]
[1672649660263,76.1188,11.222,11.212,30.0]
[1672649660264,30.0,11.221,11.212,30.0]
[1672649660481,30.0,11.221,11.211,67.01]
[1672649661222,46.1188,11.222,11.212,30.0]
[1672649661630,46.1188,11.222,11.214,30.0]
[1672649661845,19.84457921,11.22,11.213,66.99]
[1672649662260,19.84457921,11.22,11.211,67.01]
[1672649662784,96.92,11.226,11.211,67.01]
[1672649662785,66.9,11.229,11.212,30.0]
[1672649662991,116.5138,11.228,11.213,86.99]
[1672649663313,30.0,11.227,11.214,30.0]
[1672649663525,30.0,11.227,11.215,86.98]
[1672649664144,30.0,11.227,11.216,108.3636]
[1672649664375,30.0,11.227,11.217,66.97]
[1672649664565,30.0,11.227,11.217,175.3336]
[1672649665950,30.0,11.228,11.217,175.3336]
[1672649666480,115.4831,11.229,11.218,30.0]
[1672649666668,30.0,11.228,11.218,163.8044]
[1672649668887,48.5831,11.229,11.219,66.96]
[1672649669100,9.1,11.23,11.219,182.4773]
[1672649669296,85.41743525,11.229,11.219,182.4773]
[1672649669513,30.0,11.228,11.219,115.5173]
[1672649670034,107.44585391,11.228,11.219,115.5173]
[1672649670866,183.08518381,11.228,11.219,115.5173]
[1672649671296,183.08518381,11.228,11.218,24.5209]
[1672649671507,94.88158134,11.227,11.218,24.5209]
[1672649671822,107.44585391,11.226,11.218,24.5209]
[1672649672031,86.92,11.225,11.218,24.5209]
[1672649672247,30.0,11.224,11.218,24.5209]
[1672649672456,86.93,11.223,11.218,24.5209]
[1672649672670,30.0,11.222,11.215,23.5175]
[1672649672984,9.07,11.22,11.215,23.5175]
[1672649673188,39.07,11.22,11.21,67.01]
[1672649673404,9.07,11.22,11.21,67.01]
[1672649673609,9.07,11.22,11.211,30.0]
[1672649673821,77.44585391,11.221,11.212,67.0]
[1672649674040,77.44585391,11.221,11.213,30.0]
[1672649674250,23.6106,11.222,11.213,30.0]
[1672649675292,23.6106,11.222,11.215,30.0]
[1672649675502,43.0992,11.223,11.214,66.99]
[1672649676880,43.0992,11.223,11.211,67.01]
[1672649677090,30.0,11.222,11.211,67.01]
[1672649678147,30.0,11.222,11.21,67.01]
[1672649678337,53.7553,11.222,11.21,67.01]
[1672649678762,23.7553,11.222,11.211,30.0]
[1672649678978,30.0,11.221,11.212,67.0]
[1672649679931,30.0,11.221,11.211,67.01]
[1672649680124,23.7553,11.222,11.212,30.0]
[1672649680339,30.0,11.221,11.213,66.99]
[1672649680545,30.0,11.221,11.211,67.01]
[1672649680980,53.7553,11.222,11.212,30.0]
[1672649681194,53.7553,11.222,11.213,66.99]
[1672649681619,30.0,11.221,11.211,67.01]
[1672649684560,53.7553,11.222,11.211,67.01]
[1672649684987,23.7553,11.222,11.212,30.0]
[1672649685306,23.7553,11.222,11.213,66.99]
[1672649685520,30.0,11.221,11.213,66.99]
[1672649685715,30.0,11.221,11.211,67.01]
[1672649686141,98.7385299,11.223,11.212,50.0]
[1672649686359,23.0992,11.223,11.213,66.99]
[1672649686665,0.0092,11.223,11.214,20.0]
[1672649686979,142.75451714,11.228,11.215,66.98]
[1672649686980,75.6393299,11.228,11.215,66.98]
[1672649687297,75.6393299,11.228,11.217,30.0]
[1672649687298,63.58306879,11.228,11.217,30.0]
[1672649687514,30.0,11.227,11.218,91.1923]
[1672649687824,63.58306879,11.228,11.218,234.5438]
[1672649688018,30.0,11.227,11.219,167.5838]
[1672649688231,30.0,11.227,11.22,66.95]
[1672649688867,30.0,11.227,11.219,167.5838]
[1672649689590,63.58306879,11.228,11.219,167.5838]
[1672649690028,75.93,11.23,11.22,30.0]
[1672649690237,9.04,11.23,11.22,96.95]
[1672649690660,30.0,11.229,11.22,66.95]
[1672649691385,30.0,11.227,11.22,66.95]
[1672649691800,30.0,11.229,11.22,66.95]
[1672649692222,39.04,11.23,11.22,66.95]
[1672649692448,9.04,11.23,11.22,66.95]
[1672649692667,30.0,11.229,11.22,66.95]
[1672649693926,30.0,11.229,11.22,22.7841]
[1672649694348,30.0,11.229,11.22,89.7341]
[1672649694565,30.0,11.229,11.22,22.7841]
[1672649695493,30.0,11.229,11.22,89.7341]
[1672649697185,30.0,11.229,11.22,22.7841]
[1672649697822,30.0,11.227,11.22,22.7841]
[1672649698232,96.9,11.229,11.22,22.7841]
[1672649699278,62.9541,11.23,11.22,22.7841]
[1672649700457,126.53716879,11.23,11.22,22.7841]
[1672649700664,30.0,11.228,11.22,22.7841]
[1672649702446,66.9,11.229,11.22,22.7841]
[1672649702636,30.0,11.228,11.216,66.98]
[1672649702848,30.0,11.226,11.212,30.0]
[1672649703190,86.92,11.225,11.213,66.99]
[1672649703379,30.0,11.224,11.213,66.99]
[1672649703705,134.8848,11.227,11.215,30.0]
[1672649703904,134.8848,11.227,11.217,30.0]
[1672649704117,134.8848,11.227,11.218,24.7652]
[1672649704324,134.8848,11.227,11.218,91.7252]
[1672649706211,134.8848,11.227,11.219,30.0]
[1672649706737,134.8848,11.227,11.218,91.7252]
[1672649707800,134.8848,11.227,11.219,30.0]
[1672649708210,23.9852,11.227,11.219,30.0]
[1672649708422,30.0,11.226,11.218,203.5894]
[1672649708856,23.9852,11.227,11.218,203.5894]
[1672649710431,23.9852,11.227,11.218,136.6294]
[1672649710632,23.9852,11.227,11.218,203.5894]
[1672649710843,23.9852,11.227,11.219,30.0]
[1672649711259,30.0,11.228,11.219,22.9537]
[1672649711475,24.9605,11.229,11.22,52.9537]
[1672649712118,112.8329,11.23,11.22,52.9537]
[1672649712546,112.8329,11.23,11.22,119.9037]
[1672649713064,30.0,11.229,11.22,89.9037]
[1672649713811,112.8329,11.23,11.22,89.9037]
[1672649714004,30.0,11.229,11.22,89.9037]
[1672649714414,112.8329,11.23,11.22,89.9037]
[1672649714846,30.0,11.229,11.22,89.9037]
[1672649715280,112.8329,11.23,11.22,89.9037]
[1672649715686,30.0,11.229,11.22,89.9037]
[1672649716643,142.8329,11.23,11.22,89.9037]
[1672649716856,30.0,11.229,11.22,89.9037]
[1672649717067,142.8329,11.23,11.22,89.9037]
[1672649717382,112.8329,11.23,11.22,89.9037]
[1672649717571,112.8329,11.23,11.221,30.0]
[1672649717779,112.8329,11.23,11.222,66.94]
[1672649717987,24.3617,11.231,11.222,66.94]
[1672649718194,24.3617,11.231,11.221,96.95]
[1672649718413,24.3617,11.231,11.221,66.95]
[1672649718622,24.3617,11.231,11.222,30.0]
[1672649718823,24.3617,11.231,11.221,66.95]
[1672649719037,24.3617,11.231,11.222,30.0]
[1672649719898,24.3617,11.231,11.221,66.95]
[1672649720100,30.0,11.23,11.221,66.95]
[1672649720306,24.3617,11.231,11.221,66.95]
[1672649720849,30.0,11.23,11.221,66.95]
[1672649721472,24.3617,11.231,11.221,66.95]
[1672649721668,30.0,11.23,11.221,66.95]
[1672649721884,29.5,11.23,11.221,66.95]
[1672649722300,29.5,11.23,11.22,89.9037]
[1672649723365,87.94476879,11.231,11.22,89.9037]
[1672649723577,66.86,11.236,11.221,50.0]
[1672649723777,30.0,11.235,11.223,30.0]
[1672649723983,30.0,11.235,11.224,178.1191]
[1672649723984,30.0,11.233,11.224,178.1191]
[1672649724194,20.0,11.232,11.222,66.94]
[1672649724403,20.0,11.232,11.221,66.95]
[1672649724614,44.5541,11.232,11.222,30.0]
[1672649724836,44.5541,11.232,11.223,66.94]
[1672649725456,44.5541,11.232,11.222,66.94]
[1672649726094,44.5541,11.232,11.223,30.0]
[1672649726725,130.44306879,11.236,11.223,30.0]
[1672649726726,66.28536,11.245,11.224,66.93]
[1672649727049,9.16,11.25,11.23,45.26]
[1672649727266,30.0,11.249,11.231,116.89]
[1672649727574,30.0,11.247,11.232,30.0]
[1672649727764,30.0,11.245,11.234,30.0]
[1672649727974,66.8,11.246,11.235,86.86]
[1672649728186,30.0,11.247,11.236,30.0]
[1672649728406,66.79,11.248,11.236,140.3931]
[1672649728619,30.0,11.247,11.235,113.6662]
[1672649728827,30.0,11.245,11.234,66.87]
[1672649729040,30.0,11.243,11.229,30.0]
[1672649729243,126.48291845,11.248,11.23,186.3531]
[1672649729458,30.0,11.248,11.231,30.0]
[1672649729663,30.0,11.248,11.232,66.88]
[1672649729996,30.0,11.248,11.234,30.0]
[1672649730185,30.0,11.248,11.235,242.3743]
[1672649730392,30.0,11.246,11.236,30.0]
[1672649730607,30.0,11.246,11.236,108.4722]
[1672649731885,66.8,11.245,11.236,108.4722]
[1672649732080,66.8,11.245,11.235,47.0421]
[1672649732287,77.80272414,11.244,11.235,47.0421]
[1672649732498,30.0,11.242,11.235,47.0421]
[1672649732709,66.83,11.241,11.235,47.0421]
[1672649733551,77.80272414,11.243,11.235,47.0421]
[1672649733767,70.09291845,11.243,11.231,96.89]
[1672649733987,30.0,11.246,11.231,96.89]
[1672649734188,30.0,11.244,11.231,96.89]
[1672649734521,66.8,11.245,11.231,112.69730786]
[1672649734917,96.8,11.246,11.231,112.69730786]
[1672649735135,96.8,11.246,11.231,96.89]
[1672649735349,136.87291845,11.249,11.231,96.89]
[1672649735542,66.78,11.249,11.233,30.0]
[1672649735757,66.78,11.249,11.234,132.9868]
[1672649735964,66.78,11.249,11.234,148.79410786]
[1672649736180,30.0,11.248,11.235,30.0]
[1672649736401,30.0,11.248,11.237,30.0]
[1672649736604,30.0,11.248,11.238,115.86]
[1672649736812,100.09291845,11.248,11.238,115.86]
[1672649737023,30.0,11.246,11.238,115.86]
[1672649737673,66.79,11.247,11.238,115.86]
[1672649737881,30.0,11.246,11.238,115.86]
[1672649739118,66.79,11.247,11.238,115.86]
[1672649739330,96.78,11.249,11.238,115.86]
[1672649739656,30.0,11.249,11.239,30.0]
[1672649739875,105.93,11.25,11.239,148.2499]
[1672649740083,39.16,11.25,11.24,118.2499]
[1672649741011,66.76,11.253,11.241,66.83]
[1672649741223,66.75,11.254,11.241,185.0799]
[1672649741455,30.0,11.253,11.241,185.0799]
[1672649741869,30.0,11.253,11.241,118.2499]
[1672649742065,100.09291845,11.253,11.241,118.2499]
[1672649742276,66.76,11.252,11.241,118.2499]
[1672649742491,30.0,11.251,11.241,118.2499]
[1672649743332,100.09291845,11.253,11.241,118.2499]
[1672649743955,20.0,11.252,11.241,118.2499]
[1672649744178,20.0,11.252,11.242,66.82]
[1672649744373,30.0,11.251,11.242,66.82]
[1672649746293,20.0,11.252,11.242,66.82]
[1672649746508,30.0,11.251,11.241,118.2499]
[1672649747118,90.09291845,11.252,11.241,118.2499]
[1672649747335,90.09291845,11.252,11.242,66.82]
[1672649747768,30.0,11.251,11.242,66.82]
[1672649747964,30.0,11.251,11.241,118.2499]
[1672649747965,9.04,11.25,11.241,118.2499]
[1672649749139,70.09291845,11.251,11.241,185.0799]
[1672649750078,30.0,11.25,11.241,185.0799]
[1672649750711,39.07,11.25,11.241,185.0799]
[1672649751029,9.07,11.25,11.241,185.0799]
[1672649751555,70.09291845,11.251,11.241,185.0799]
[1672649752695,30.0,11.25,11.241,185.0799]
[1672649753422,30.0,11.25,11.241,118.2499]
[1672649753632,100.09291845,11.251,11.242,66.82]
[1672649753845,70.09291845,11.251,11.242,66.82]
[1672649755126,30.0,11.25,11.242,66.82]
[1672649755314,30.0,11.25,11.241,185.0799]
[1672649755944,100.09291845,11.25,11.241,185.0799]
[1672649756158,166.86291845,11.25,11.241,118.2499]
[1672649756364,100.09291845,11.25,11.241,118.2499]
[1672649757015,20.0,11.252,11.242,30.0]
[1672649757232,20.0,11.252,11.243,66.82]
[1672649758170,30.0,11.251,11.242,66.82]
[1672649759535,50.0,11.252,11.242,66.82]
[1672649759854,20.0,11.252,11.242,66.82]
[1672649760255,30.0,11.251,11.242,66.82]
[1672649761418,20.0,11.252,11.243,30.0]
[1672649761623,20.0,11.252,11.244,66.81]
[1672649762268,30.0,11.251,11.243,66.82]
[1672649762582,30.0,11.251,11.242,66.82]
[1672649763000,20.0,11.252,11.242,66.82]
[1672649763206,20.0,11.252,11.243,30.0]
[1672649763526,20.0,11.252,11.244,66.81]
[1672649763936,30.0,11.251,11.242,66.82]
[1672649764261,50.0,11.252,11.242,66.82]
[1672649764683,30.0,11.251,11.242,66.82]
[1672649765943,23.4888,11.258,11.242,66.82]
[1672649766152,23.4888,11.258,11.243,20.0]
[1672649766363,30.0,11.257,11.244,96.81]
[1672649766563,30.0,11.258,11.246,30.0]
[1672649766897,30.0,11.258,11.247,224.0806]
[1672649767301,30.0,11.258,11.249,30.0]
[1672649767510,30.0,11.258,11.248,158.8417]
[1672649768171,30.0,11.258,11.249,23.2392]
[1672649768791,30.0,11.258,11.249,131.2492]